fUSD/lending_fUSD_20250319
["ID","MTS","AMOUNT","RATE_DAILY","PERIOD"]
[356386052,1742367032297,-1296.0758,9.9e-05,2]
[356386053,1742367032306,-3805.5192,9.9e-05,2]
[356386054,1742367032315,-1837.919118,9.9e-05,2]
[356386055,1742367032324,-400.7164,9.9e-05,2]
[356386056,1742367032334,-1974.087,9.9e-05,2]
[356386057,1742367032343,-2879.6168,9.9e-05,2]
[356386058,1742367032352,-172.0,9.9e-05,2]
[356386059,1742367032362,-2500.0,9.9e-05,2]
[356386060,1742367032371,-150.0,9.902e-05,2]
[356386061,1742367032380,-250.0,9.902e-05,2]
[356386062,1742367032389,-157.82,9.905e-05,2]
[356386063,1742367032399,-678.74172896,9.963e-05,2]
[356386064,1742367032409,-500.0,9.972e-05,2]
[356386065,1742367032418,-413.38906643,9.972e-05,2]
[356386066,1742367032428,-571.72937744,9.972e-05,2]
[356386067,1742367032437,-1560.422,9.972e-05,2]
[356386068,1742367032446,-170.294,9.972e-05,2]
[356386069,1742367032456,-153.54367013,9.972e-05,2]
[356386070,1742367032466,-2836.09075861,9.972e-05,2]
[356386071,1742367032475,-41563.0,9.973e-05,2]
[356386072,1742367032485,-500.0,9.973e-05,2]
[356386073,1742367032494,-165.71584081,9.973e-05,2]
[356386074,1742367032504,-160.50560388,9.973e-05,2]
[356386075,1742367032513,-250.0,9.996e-05,2]
[356386076,1742367032523,-694.0,0.0001,2]
[356386077,1742367032534,-5483.63645939,0.0001,2]
[356386078,1742367032545,-1095.15854495,0.0001,2]
[356386079,1742367032587,4307088.38876267,0.00030281,30]
[356386083,1742367038162,-1578.0,9.9e-05,2]
[356386084,1742367038290,-2545.50539138,9.9e-05,2]
[356386087,1742367038303,-3967.82184322,9.9e-05,2]
[356386130,1742367040099,-3206.2616654,9.9e-05,2]
[356386131,1742367040110,-623.0,0.0001,2]
[356386132,1742367040120,-226.17013466,0.0001,2]
[356386133,1742367040324,-3868.2,0.0001,2]
[356386134,1742367040336,-363011.81967163,0.0001,2]
[356386135,1742367040346,-214.433,0.0001,2]
[356386136,1742367040356,-150.079,0.0001,2]
[356386137,1742367040366,-150.0,0.0001,2]
[356386138,1742367040377,-171.279,0.0001,2]
[356386139,1742367040386,-1131094.74754907,0.0001,2]
[356386140,1742367040396,-561196.80167545,0.0001,2]
[356386141,1742367040405,-173.62226651,0.0001,2]
[356386142,1742367040415,-347.76429634,0.0001,2]
[356386143,1742367040425,-1280.0,0.0001,2]
[356386144,1742367040434,-2035.0,0.0001,2]
[356386145,1742367040455,-674.699,0.0001,2]
[356386146,1742367040465,-1419.0,0.0001,2]
[356386147,1742367040475,-653.381,0.0001,2]
[356386148,1742367040485,-1275.658,0.0001,2]
[356386149,1742367040495,-789.0,0.0001,2]
[356386150,1742367040505,-4081.0,0.0001,2]
[356386151,1742367040515,-546.435,0.0001,2]
[356386152,1742367040524,-917.105,0.0001,2]
[356386153,1742367040534,-1436.901,0.0001,2]
[356386154,1742367040544,-326.0803485,0.0001,2]
[356386155,1742367040554,-1014.0,0.0001,2]
[356386156,1742367040564,-3937.0,0.0001,2]
[356386157,1742367040575,-151.0,0.0001,2]
[356386159,1742367040584,-150.0,0.0001,2]
[356386161,1742367040594,-157.82,0.00010003,2]
[356386162,1742367040603,-150.0,0.00010068,2]
[356386164,1742367040613,-157.82,0.00010101,2]
[356386167,1742367040623,-231.05,0.00010106,2]
[356386169,1742367040633,-157.82,0.00010199,2]
[356386171,1742367040646,-414.42662805,0.000102,2]
[356386173,1742367040655,-157.82,0.00010297,2]
[356386175,1742367040664,-23129.86841019,0.00010358,2]
[356386177,1742367040674,-2281.41,0.0001043,2]
[356386179,1742367040685,-817.02,0.00010475,2]
[356386181,1742367040695,-9999.99,0.00010475,2]
[356386183,1742367040704,-999.99,0.00010475,2]
[356386185,1742367040715,-499.99,0.00010475,2]
[356386187,1742367040725,-150.99,0.00010475,2]
[356386189,1742367040735,-287.0,0.00010603,2]
[356386191,1742367040744,-1000.0,0.00010721,2]
[356386193,1742367040754,-262.6,0.00010866,2]
[356386195,1742367040764,-508.82,0.00010871,2]
[356386197,1742367040774,-255.0,0.00010889,2]
[356386199,1742367040784,-255.0,0.000109,2]
[356386201,1742367040794,-178.58267599,0.000109,2]
[356386203,1742367040807,-200.0,0.00010959,2]
[356386205,1742367040817,-200.0,0.00010959,2]
[356386207,1742367040827,-150.0,0.00010959,2]
[356386209,1742367040837,-7588.24621006,0.00011099,2]
[356386210,1742367040847,-5756.30701625,0.00011099,2]
[356386211,1742367040856,-171.36,0.00011474,2]
[356386212,1742367040866,-150.0,0.00011672,7]
[356386213,1742367040876,-1406.69,0.00011704,2]
[356386214,1742367040886,-250.0,0.00011776,2]
[356386215,1742367040896,-2000.0,0.00011803,2]
[356386216,1742367040906,-1095.65,0.00011806,2]
[356386217,1742367040915,-216.53,0.00011901,2]
[356386218,1742367040925,-1000.0,0.00011912,2]
[356386219,1742367040935,-200.0,0.0001197,2]
[356386220,1742367040945,-245.0,0.00011978,2]
[356386221,1742367040955,-508.82,0.0001223,2]
[356386222,1742367040964,-166.66,0.00012267,2]
[356386223,1742367040974,-500.0,0.00012383,2]
[356386224,1742367040984,-500.0,0.0001241,2]
[356386225,1742367040993,-500.0,0.00012438,2]
[356386226,1742367041003,-500.0,0.00012465,2]
[356386227,1742367041013,-500.0,0.00012493,2]
[356386228,1742367041023,-500.0,0.0001252,2]
[356386229,1742367041033,-500.0,0.00012547,2]
[356386230,1742367041043,-216.53,0.00012562,2]
[356386231,1742367041053,-500.0,0.00012575,2]
[356386232,1742367041064,-500.0,0.00012602,2]
[356386233,1742367041074,-500.0,0.0001263,2]
[356386234,1742367041084,-318.24,0.00012635,2]
[356386235,1742367041094,-2281.41,0.0001264,2]
[356386236,1742367041103,-1829.51,0.00012647,2]
[356386237,1742367041113,-500.0,0.00012657,2]
[356386238,1742367041123,-318.24,0.00012668,2]
[356386239,1742367041362,-166.66,0.00012672,2]
[356386240,1742367041372,-500.0,0.00012684,2]
[356386241,1742367041382,-318.24,0.00012701,2]
[356386242,1742367041392,-500.0,0.00012712,2]
[356386243,1742367041402,-318.24,0.00012735,2]
[356386244,1742367041411,-829.73699354,0.00012739,2]
[356386245,1742367041421,-318.24,0.00012768,2]
[356386246,1742367041431,-318.24,0.00012801,2]
[356386247,1742367041440,-318.24,0.00012834,2]
[356386248,1742367041449,-318.24,0.00012868,2]
[356386249,1742367041459,-318.24,0.00012901,2]
[356386250,1742367041468,-318.24,0.00012934,2]
[356386251,1742367041478,-318.24,0.00012967,2]
[356386252,1742367041487,-150.0,0.00013,2]
[356386253,1742367041497,-1280.0,0.00013,2]
[356386254,1742367041506,-2035.0,0.00013,2]
[356386255,1742367041516,-641.0,0.00013,2]
[356386256,1742367041525,-1419.0,0.00013,2]
[356386257,1742367041535,-572.0,0.00013,2]
[356386258,1742367041544,-1272.0,0.00013,2]
[356386259,1742367041554,-787.0,0.00013,2]
[356386260,1742367041564,-4081.0,0.00013,2]
[356386261,1742367041573,-541.0,0.00013,2]
[356386262,1742367041583,-907.0,0.00013,2]
[356386263,1742367041592,-1429.0,0.00013,2]
[356386264,1742367041602,-1014.0,0.00013,2]
[356386265,1742367041611,-151.04,0.00013,2]
[356386266,1742367041621,-151.04,0.00013,2]
[356386267,1742367041631,-151.04,0.00013,2]
[356386268,1742367041640,-151.04,0.00013,2]
[356386269,1742367041653,-151.04,0.00013,2]
[356386270,1742367041663,-151.04,0.00013,2]
[356386271,1742367041672,-151.04,0.00013,2]
[356386272,1742367041682,-151.04,0.00013,2]
[356386273,1742367041692,-151.04,0.00013,2]
[356386274,1742367041701,-151.04,0.00013,2]
[356386275,1742367041710,-3937.0,0.00013,2]
[356386276,1742367041720,-151.0,0.00013,2]
[356386277,1742367041730,-318.24,0.00013001,2]
[356386278,1742367041740,-318.24,0.00013034,2]
[356386279,1742367041750,-318.24,0.00013067,2]
[356386280,1742367041759,-166.66,0.00013077,2]
[356386281,1742367041768,-318.24,0.00013101,2]
[356386282,1742367041777,-1000.0,0.00013104,2]
[356386283,1742367041787,-318.24,0.00013134,2]
[356386284,1742367041797,-318.24,0.00013167,2]
[356386285,1742367041806,-318.24,0.000132,2]
[356386286,1742367041815,-216.53,0.00013224,2]
[356386287,1742367041825,-318.24,0.00013234,2]
[356386288,1742367041836,-318.24,0.00013267,2]
[356386289,1742367041846,-1095.65,0.00013282,2]
[356386290,1742367041855,-7588.24620999,0.00013442,2]
[356386291,1742367041864,-5756.30701623,0.00013446,2]
[356386292,1742367041874,-166.66,0.00013482,2]
[356386293,1742367041883,-508.82,0.00013588,2]
[356386294,1742367041893,-200.0,0.00013699,2]
[356386295,1742367041909,-500.0,0.00013699,2]
[356386296,1742367041919,-500.0,0.00013699,2]
[356386297,1742367041929,-500.0,0.00013699,2]
[356386298,1742367041939,-302.98879983,0.00013699,2]
[356386299,1742367041949,-500.0,0.00013699,2]
[356386300,1742367041959,-255.88764442,0.00013699,2]
[356386301,1742367041972,-216.53,0.00013885,2]
[356386302,1742367041982,-166.66,0.00013887,2]
[356386303,1742367041992,-166.66,0.00014292,2]
[356386304,1742367042002,-1000.0,0.00014295,2]
[356386305,1742367042012,-216.53,0.00014546,2]
[356386306,1742367042023,-1095.65,0.00014757,2]
[356386307,1742367042032,-2281.41,0.00014851,2]
[356386308,1742367042043,-508.82,0.00014947,2]
[356386309,1742367042053,-250.0,0.00015,2]
[356386310,1742367042063,-246.06,0.00015068,2]
[356386311,1742367042074,-216.53,0.00015207,2]
[356386312,1742367042084,-216.53,0.00015868,2]
[356386313,1742367042094,-1280.0,0.00016,2]
[356386314,1742367042103,-2035.0,0.00016,2]
[356386315,1742367042113,-641.0,0.00016,2]
[356386316,1742367042125,-1419.0,0.00016,2]
[356386317,1742367042135,-572.0,0.00016,2]
[356386318,1742367042144,-1272.0,0.00016,2]
[356386319,1742367042154,-787.0,0.00016,2]
[356386320,1742367042164,-4081.0,0.00016,2]
[356386321,1742367042175,-541.0,0.00016,2]
[356386322,1742367042186,-907.0,0.00016,2]
[356386323,1742367042195,-1429.0,0.00016,2]
[356386324,1742367042205,-577.35,0.00016,2]
[356386325,1742367042215,-3937.0,0.00016,2]
[356386326,1742367042224,-151.0,0.00016,2]
[356386327,1742367042234,-2339.79,0.00016116,2]
[356386328,1742367042244,-1095.65,0.00016233,2]
[356386329,1742367042254,-508.82,0.00016306,2]
[356386330,1742367042264,-246.06,0.00016438,2]
[356386331,1742367042275,-216.53,0.00016529,2]
[356386332,1742367042284,-7588.24620999,0.00016984,2]
[356386333,1742367042295,-5756.30701623,0.00016993,2]
[356386334,1742367042304,-300.0,0.00017,2]
[356386335,1742367042314,-303.73,0.00017029,2]
[356386336,1742367042323,-449.38,0.00017029,2]
[356386337,1742367042333,-2281.41,0.00017061,2]
[356386338,1742367042343,-216.53,0.00017191,2]
[356386339,1742367042353,-171.36,0.00017211,2]
[356386340,1742367042363,-1095.65,0.00017709,2]
[356386341,1742367042372,-216.53,0.00017852,2]
[356386342,1742367042382,-190.20579474,0.00018,2]
[356386343,1742367042391,-200.0,0.00018082,2]
[356386344,1742367042401,-158.21,0.000186,2]
[356386345,1742367042411,-1763.63584574,0.00019,2]
[356386346,1742367042420,-350.0,0.00019,2]
[356386347,1742367042429,-1280.0,0.00019,2]
[356386348,1742367042438,-2035.0,0.00019,2]
[356386349,1742367042447,-641.0,0.00019,2]
[356386350,1742367042456,-1419.0,0.00019,2]
[356386351,1742367042466,-572.0,0.00019,2]
[356386352,1742367042475,-1272.0,0.00019,2]
[356386353,1742367042484,-787.0,0.00019,2]
[356386354,1742367042494,-4081.0,0.00019,2]
[356386355,1742367042503,-541.0,0.00019,2]
[356386356,1742367042513,-907.0,0.00019,2]
[356386357,1742367042523,-1429.0,0.00019,2]
[356386358,1742367042532,-3937.0,0.00019,2]
[356386359,1742367042541,-151.0,0.00019,2]
[356386360,1742367042551,-2281.41,0.00019272,2]
[356386361,1742367042562,-5358.52534766,0.0002,2]
[356386362,1742367042572,-7508.829531,0.0002,7]
[356386363,1742367042581,-2809.481834,0.0002,7]
[356386364,1742367042591,-1428.296839,0.0002,7]
[356386365,1742367042601,-2000.0,0.0002,4]
[356386366,1742367042610,-7588.24620999,0.00020526,2]
[356386367,1742367042619,-151.04,0.00020529,2]
[356386368,1742367042629,-5756.30701623,0.00020539,2]
[356386369,1742367042638,-400.0,0.00021,2]
[356386370,1742367042650,-2000.0,0.00021111,4]
[356386371,1742367042659,-2281.41,0.00021482,2]
[356386372,1742367042670,-188.48,0.00021917,2]
[356386373,1742367042679,-176.21175599,0.00022,5]
[356386374,1742367042691,-1290.96,0.00022,2]
[356386375,1742367042701,-1280.0,0.00022,2]
[356386376,1742367042711,-2035.0,0.00022,2]
[356386377,1742367042721,-641.0,0.00022,2]
[356386378,1742367042733,-1419.0,0.00022,2]
[356386379,1742367042742,-572.0,0.00022,2]
[356386380,1742367042752,-1272.0,0.00022,2]
[356386381,1742367042762,-787.0,0.00022,2]
[356386382,1742367042775,-4081.0,0.00022,2]
[356386383,1742367042785,-541.0,0.00022,2]
[356386384,1742367042797,-907.0,0.00022,2]
[356386385,1742367042807,-1429.0,0.00022,2]
[356386386,1742367042816,-3937.0,0.00022,2]
[356386387,1742367042826,-151.0,0.00022,2]
[356386388,1742367042836,-2000.0,0.00022222,4]
[356386389,1742367042846,-326.08034849,0.00022743,2]
[356386390,1742367042856,-450.0,0.00023,2]
[356386391,1742367042866,-188.48,0.00023287,2]
[356386392,1742367042881,-2000.0,0.00023333,4]
[356386393,1742367042896,-2281.41,0.00023693,2]
[356386394,1742367042909,-291.75,0.00023836,2]
[356386395,1742367042923,-501.30374631,0.00023873,2]
[356386396,1742367042935,-74151.0,0.000239,7]
[356386397,1742367042945,-7588.24620999,0.00024068,2]
[356386398,1742367042957,-5756.30701623,0.00024085,2]
[356386399,1742367042966,-201.0,0.00024377,5]
[356386400,1742367042976,-2000.0,0.00024444,4]
[356386401,1742367042985,-188.48,0.00024657,2]
[356386402,1742367042995,-150.0,0.00024658,2]
[356386403,1742367043006,-1000.0,0.00024658,2]
[356386404,1742367043017,-191.9,0.00024712,30]
[356386405,1742367043027,-10047.87876893,0.0002475,8]
[356386407,1742367043036,-151.04,0.0002479,2]
[356386408,1742367043046,-151.04,0.0002479,2]
[356386409,1742367043056,-151.04,0.0002479,2]
[356386410,1742367043065,-445547.738421,0.000248,3]
[356386411,1742367043074,-347.76429633,0.00024883,2]
[356386412,1742367043084,-151.04,0.0002489,2]
[356386413,1742367043093,-153867.868113,0.000249,3]
[356386414,1742367043102,-422.9531316,0.00025,2]
[356386415,1742367043112,-1014.971,0.00025,2]
[356386416,1742367043122,-500.0,0.00025,2]
[356386417,1742367043132,-1616.307,0.00025,2]
[356386420,1742367043141,-191.18,0.00025,2]
[356386422,1742367043151,-1272.0,0.00025,2]
[356386423,1742367043159,-4081.0,0.00025,2]
[356386424,1742367043169,-541.0,0.00025,2]
[356386425,1742367043178,-907.0,0.00025,2]
[356386426,1742367043188,-1429.0,0.00025,2]
[356386427,1742367043198,-3521.08,0.00025,2]
[356386428,1742367043208,-151.0,0.00025,2]
[356386429,1742367043217,-150.0,0.00025306,2]
[356386430,1742367043227,-2000.0,0.00025556,4]
[356386431,1742367043237,-2281.41,0.00025903,2]
[356386432,1742367043246,-150.0,0.00025955,2]
[356386433,1742367043256,-188.48,0.00026027,2]
[356386434,1742367043265,-1290.96,0.000266,2]
[356386435,1742367043275,-150.0,0.00026604,2]
[356386436,1742367043284,-2000.0,0.00026667,4]
[356386437,1742367043294,-527.89,0.00026849,2]
[356386438,1742367043304,-308.73,0.00026849,2]
[356386439,1742367043314,-446.9,0.00026849,2]
[356386440,1742367043323,-151.22,0.00026889,2]
[356386441,1742367043333,-41600.000001,0.00027,8]
[356386442,1742367043343,-550.0,0.00027,2]
[356386443,1742367043358,-150.0,0.00027253,2]
[356386444,1742367043367,-168.33464578,0.00027397,2]
[356386445,1742367043377,-188.48,0.00027397,2]
[356386446,1742367043387,-215.72504719,0.00027397,2]
[356386447,1742367043396,-7588.24620999,0.00027609,2]
[356386448,1742367043406,-5756.30701623,0.00027632,2]
[356386449,1742367043416,-2000.0,0.00027778,4]
[356386450,1742367043425,-151.94339482,0.000279,2]
[356386451,1742367043434,-267.29137379,0.000279,2]
[356386452,1742367043444,-36011.80643785,0.000279,2]
[356386453,1742367043453,-172.184305,0.000279,5]
[356386454,1742367043463,-150.0,0.00027902,2]
[356386455,1742367043473,-151.04,0.0002799,2]
[356386456,1742367043483,-151.04,0.0002799,2]
[356386458,1742367043492,-151.04,0.0002799,2]
[356386459,1742367043502,-151.04,0.0002799,2]
[356386460,1742367043511,-699999.999999,0.00028,2]
[356386461,1742367043521,-270.97093114,0.00028,60]
[356386462,1742367043530,-2541.458,0.00028,2]
[356386463,1742367043540,-151.0,0.00028,2]
[356386464,1742367043550,-2281.41,0.00028114,2]
[356386465,1742367043559,-34360.0,0.00028463,7]
[356386466,1742367043569,-420.0,0.00028466,2]
[356386467,1742367043579,-2005.19,0.000285,2]
[356386468,1742367043588,-1290.96,0.000285,2]
[356386469,1742367043598,-150.0,0.00028551,2]
[356386470,1742367043607,-188.48,0.00028767,2]
[356386471,1742367043616,-1132.44227594,0.00028889,4]
[356386472,1742367043626,-294.31,0.00028933,7]
[356386473,1742367043635,-500.0,0.00028933,7]
[356386474,1742367043645,-20000.0,0.00029,15]
[356386475,1742367043658,-600.0,0.00029,2]
[356386476,1742367043667,-191.9,0.00029191,30]
[356386477,1742367043677,-150.0,0.000292,2]
[356386478,1742367043686,-2311.68859964,0.0002928,2]
[356386479,1742367043695,-150.0,0.00029849,2]
[356386480,1742367043704,-211.0,0.0003,2]
[356386481,1742367043714,-200.0,0.0003013,2]
[356386482,1742367043723,-188.48,0.00030136,2]
[356386483,1742367043734,-151.04,0.0003019,2]
[356386484,1742367043744,-151.04,0.00030271,2]
[356386485,1742367043753,-302.0,0.0003028,30]
[356386486,1742367043763,-55754.93234587,0.00030281,2]
[356386487,1742367043772,-12922.19626394,0.00030281,2]
[356386488,1742367043781,-3127.7078243,0.00030281,15]
[356386489,1742367043792,-2000.0,0.00030281,7]
[356386491,1742367043801,-2000.0,0.00030281,7]
[356386493,1742367043811,-2000.0,0.00030281,7]
[356386495,1742367043820,-2000.0,0.00030281,7]
[356386497,1742367043830,-2000.0,0.00030281,7]
[356386499,1742367043839,-2000.0,0.00030281,7]
[356386500,1742367043849,-1325.0,0.00030281,7]
[356386501,1742367043858,-11452.27744328,0.00030281,2]
[356386502,1742367043868,-12743.78235021,0.00030281,2]
[356386503,1742367043877,-25169.96239393,0.00030281,2]
[356386504,1742367043886,-7635.8264302,0.00030281,2]
[356386505,1742367043896,-227.37078898,0.00030281,2]
[356386506,1742367043905,-172.55582677,0.00030281,2]
[356386507,1742367043915,-6000.0,0.00030281,2]
[356386508,1742367043924,-372.83527565,0.00030281,2]
[356386509,1742367043933,-1460.40075249,0.00030281,2]
[356386510,1742367043942,-1026.32979493,0.00030281,2]
[356386511,1742367043951,-4816.96639382,0.00030281,2]
[356386512,1742367043960,-185.21298952,0.00030281,2]
[356386513,1742367043970,-559.22741312,0.00030281,2]
[356386514,1742367043979,-150.0,0.00030281,2]
[356386515,1742367043988,-7720.60585302,0.00030281,2]
[356386516,1742367043997,-602.86436364,0.00030281,2]
[356386517,1742367044006,-621.93509905,0.00030281,2]
[356386518,1742367044015,-213.20434871,0.00030281,2]
[356386519,1742367044025,-148106.02854409,0.00030281,2]
[356386520,1742367044034,-2943.73521287,0.00030281,2]
[356386521,1742367044043,-505.00917683,0.00030281,5]
[356386522,1742367044052,-206092.20275028,0.00030281,30]
[356386523,1742367044076,-825.08771182,0.0001,2]
[356386524,1742367044087,-289.91228818,0.0001,2]
[356386525,1742367044097,-5625.4276009,0.00030281,30]
[356386526,1742367046010,-2335.9006,9.85e-05,2]
[356386527,1742367046301,-1068.40519484,9.85e-05,2]
[356386528,1742367162567,1535.7504,8.902e-05,2]
[356386529,1742367558403,-267.744,9.873e-05,2]
[356386530,1742367558428,-182.9101,9.873e-05,2]
[356386531,1742367558455,-150.0,9.886e-05,2]
[356386532,1742367558482,-250.0,9.886e-05,2]
[356386533,1742367558510,-1000.0,9.9e-05,2]
[356386534,1742367558535,-313.0011,9.9e-05,2]
[356386535,1742367558561,-157.0122,9.9e-05,2]
[356386536,1742367558586,-2233.34228786,9.9e-05,2]
[356386537,1742367558614,-189.04,0.0001,2]
[356386538,1742367590308,165.46620927,0.0001,2]
[356386540,1742368232096,-250.0,0.00011383,2]
[356386541,1742368232106,-176.36644233,0.00011885,2]
[356386542,1742368232207,-255.97559429,0.00011885,2]
[356386543,1742368232219,-701.115,0.00011885,2]
[356386544,1742368232231,-626.59296356,0.00011885,2]
[356386545,1742368232308,-399.07240759,0.00011885,2]
[356386546,1742368232319,-952.32999,0.00011885,2]
[356386547,1742368232331,-318.46481523,0.00011885,2]
[356386548,1742368232340,-150.0,0.00011968,2]
[356386549,1742368232349,-159.11803986,0.00011968,2]
[356386550,1742368232410,-90.88196014,0.00011968,2]
[356386551,1742368232419,-152.03272419,0.00012021,2]
[356386552,1742368232428,-152.816,0.00012028,2]
[356386553,1742368232438,-641.0,0.00012028,2]
[356386554,1742368232447,-690.019,0.00012028,2]
[356386555,1742368232457,-84.03096956,0.00012028,2]
[356386556,1742368232468,-1300.0,0.00012028,2]
[356386557,1742368232479,-691.96203044,0.00012028,2]
[356386558,1742368232489,-835.48849307,0.00012028,2]
[356386560,1742368238021,-583.51150693,0.00012028,2]
[356386561,1742368238031,-571.0,0.00012028,2]
[356386562,1742368238041,-1271.0,0.00012028,2]
[356386563,1742368238051,-787.0,0.00012028,2]
[356386564,1742368238063,-1256.768,0.00012028,2]
[356386565,1742368238072,-3935.0,0.00012028,2]
[356386566,1742368238082,-151.0,0.00012028,2]
[356386567,1742368238092,-284.607,0.00012028,2]
[356386568,1742368238102,-150.0,0.00012521,2]
[356386569,1742368238112,-150.0,0.00012521,2]
[356386570,1742368238121,-250.0,0.00012521,2]
[356386571,1742368238131,-150.0,0.00013,2]
[356386572,1742368238145,-27220.50264343,0.00013833,2]
[356386573,1742368238157,-630.69068571,0.00013833,2]
[356386574,1742368238168,-131.39342513,0.00013833,2]
[356386575,1742368238178,-400.61240697,0.000149,2]
[356386576,1742368238187,-150.0,0.00015028,2]
[356386577,1742368238197,-151.0,0.00015028,2]
[356386578,1742368238206,-250.70802109,0.0001504,2]
[356386579,1742368238216,-607.05199464,0.000159,2]
[356386580,1742368238232,-500.0,0.000159,2]
[356386581,1742368238244,-576.46800536,0.000159,2]
[356386582,1742368238254,-150.0,0.00016,2]
[356386583,1742368238263,-912.18278426,0.00016154,2]
[356386584,1742368238274,-274.69721574,0.00016154,2]
[356386585,1742368238284,-615.47701672,0.00017669,2]
[356386586,1742368238294,-600.0,0.0001792,2]
[356386587,1742368238303,-202.75,0.00017968,2]
[356386588,1742368238313,-151.0,0.00018028,2]
[356386590,1742368238323,-448.32076754,0.00018148,2]
[356386592,1742368238335,-666.216,0.00018148,2]
[356386595,1742368238347,-444.65525381,0.00018148,2]
[356386597,1742368238358,-2529.12797865,0.00018148,2]
[356386599,1742368238367,-500.0,0.00018148,2]
[356386601,1742368238377,-500.0,0.00018148,2]
[356386603,1742368238386,-500.0,0.00018148,2]
[356386605,1742368238395,-500.0,0.00018148,2]
[356386607,1742368238405,-500.0,0.00018148,2]
[356386609,1742368238414,-500.0,0.00018148,2]
[356386611,1742368238424,-500.0,0.00018148,2]
[356386613,1742368238433,-500.0,0.00018148,2]
[356386615,1742368238442,-500.0,0.00018148,2]
[356386617,1742368238451,-500.0,0.00018148,2]
[356386619,1742368238460,-500.0,0.00018148,2]
[356386620,1742368238469,-500.0,0.00018148,2]
[356386622,1742368238478,-500.0,0.00018148,2]
[356386624,1742368238487,-500.0,0.00018148,2]
[356386626,1742368238496,-199.00835723,0.00018148,2]
[356386628,1742368238507,-300.99164277,0.00018148,2]
[356386630,1742368238517,-500.0,0.00018148,2]
[356386632,1742368238526,-156.37594228,0.00018148,2]
[356386704,1742368240205,-343.62405772,0.00018148,2]
[356386705,1742368240215,-500.0,0.00018148,2]
[356386706,1742368240225,-500.0,0.00018148,2]
[356386707,1742368240235,-500.0,0.00018148,2]
[356386708,1742368240244,-500.0,0.00018148,2]
[356386709,1742368240254,-500.0,0.00018148,2]
[356386710,1742368240263,-500.0,0.00018148,2]
[356386711,1742368240273,-500.0,0.00018148,2]
[356386712,1742368240283,-500.0,0.00018148,2]
[356386713,1742368240292,-500.0,0.00018148,2]
[356386714,1742368240301,-500.0,0.00018148,2]
[356386715,1742368240311,-500.0,0.00018148,2]
[356386716,1742368240320,-500.0,0.00018148,2]
[356386717,1742368240330,-500.0,0.00018148,2]
[356386718,1742368240339,-500.0,0.00018148,2]
[356386719,1742368240348,-500.0,0.00018148,2]
[356386720,1742368240359,-500.0,0.00018148,2]
[356386721,1742368240368,-500.0,0.00018148,2]
[356386722,1742368240377,-500.0,0.00018148,2]
[356386723,1742368240387,-500.0,0.00018148,2]
[356386724,1742368240396,-500.0,0.00018148,2]
[356386725,1742368240407,-500.0,0.00018148,2]
[356386726,1742368240416,-500.0,0.00018148,2]
[356386727,1742368240426,-500.0,0.00018148,2]
[356386728,1742368240435,-500.0,0.00018148,2]
[356386729,1742368240445,-500.0,0.00018148,2]